Cogmind - Beta 14 @@@ ROGUE MODE // 2024.08.10 @ 18:18:45 Player: Moondoggie Result: Destroyed by G-47 Trooper with Particle Gun Performance ------------- Evolutions (2) 1000 Regions Visited (3) 600 Robots Destroyed (35) 175 Value Destroyed (663) 663 Prototype IDs (1) 20 Alien Tech Used (0) 0 Bonus (0) 0 TOTAL SCORE: 2458 Bonus ------- None Cogmind --------- Core Integrity 0/550 Matter 68/300 Energy 99/100 System Corruption 0% Temperature Cool (18) Movement Core (50) Location -8/Materials Parts ------- > --- POWER (2) -------- (None) > --- PROPULSION (3) --- (None) > --- UTILITY (3) ------ (None) > --- WEAPON (3) ------- (None) > --- INVENTORY (5) ---- Weight Redist. System Improved Targeting Computer Peak State ------------ > --- POWER ------------ Light Nuclear Core Light Nuclear Core > --- PROPULSION ------- Hover Unit > --- UTILITY ---------- Thermal Generator Small Storage Unit > --- WEAPON ----------- Beam Rifle Rocket Launcher Rocket Launcher > --- INVENTORY -------- Weight Redist. System Shield Generator Shield Generator Rocket Launcher Rocket Launcher [Rating: 18] Favorites ----------- Power Ion Engine Engine Ion Engine Power Core Light Nuclear Core Propulsion Hover Unit Treads Improved Treads Leg Titanium Leg Wheel Wheel Hover Unit Hover Unit Utility Small Storage Unit Device Shield Generator Storage Small Storage Unit Protection Improved Light Armor Plating Weapon Rocket Launcher Energy Gun Beam Rifle Energy Cannon Particle Cannon Ballistic Gun Light Assault Rifle Launcher Rocket Launcher Build | -11 -10 -9 -8 ------- Run | Yrd Mat Mat Mat Slots Evolved 4 | . . 2 2 Power 1 | . . 1 . Propulsion 1 | . . . 1 Utility 1 | . . . 1 Weapon 1 | . . 1 . Parts Attached 44 | 6 8 25 5 Power 9 | 1 1 5 2 Engine 5 | 1 1 2 1 Core 4 | . . 3 1 Reactor . | . . . . Propulsion 9 | 2 3 3 1 Treads 1 | . . 1 . Leg 1 | . . . 1 Wheel 6 | 2 2 2 . Hover 1 | . 1 . . Flight . | . . . . Utility 7 | 1 1 4 1 Device 4 | . . 4 . Storage 2 | 1 1 . . Processor . | . . . . Hackware . | . . . . Protection 1 | . . . 1 Artifact . | . . . . Weapon 19 | 2 3 13 1 Energy Gun 9 | 1 1 7 . Energy Cannon 2 | . . 1 1 Ballistic Gun 2 | 1 . 1 . Ballistic Cannon . | . . . . Launcher 6 | . 2 4 . Special Weapon . | . . . . Impact Weapon . | . . . . Slashing Weapon . | . . . . Piercing Weapon . | . . . . Special Melee Weapon . | . . . . Unidentified Prototypes 1 | . . 1 . Parts Lost 24 | . . 17 7 Power 5 | . . 3 2 Propulsion 5 | . . 4 1 Utility 5 | . . 3 2 Weapon 9 | . . 7 2 Highest Loss Streak 7 | . . 5 7 To Critical Strikes . | . . . . Average Slot Usage (%) 71 | . 86 71 37 Engine 11 | . 13 12 1 Core 2 | . . 2 6 Treads 2 | . . 3 . Wheel 5 | . 19 1 . Hover 3 | . 1 5 . Device 4 | . . 5 8 Storage 15 | . 27 13 . Energy Gun 11 | . 7 13 . Ballistic Gun 2 | . 8 . 6 Launcher 10 | . 7 12 . Peak Build Rating 18 | 6 8 18 11 Average Rating 9 | 4 6 10 8 On Entrance 4 | . 6 7 3 Naked Turns 1 | . . . 1 Heaviest Build 29 | 13 19 29 17 Greatest Support 26 | 26 26 23 17 Greatest Overweight (x) 9 | . 6 9 5 Average Overweight (x) 1 | . . 2 3 Largest Inventory Capacity 8 | 8 8 8 5 Average Capacity 7 | 6 8 7 5 Most Carried 8 | . 8 8 3 Average Carried 4 | . 3 5 1 Final Capacity 8 | 8 8 5 5 Final Carried 4 | . 4 3 2 Class Distribution -------------------- 67% | Mutant 32% | Bomber Dominant Class ---------------- Mutant | -10/Materials Mutant | -9/Materials Mutant | -8/Materials Resources | -11 -10 -9 -8 ----------- Run | Yrd Mat Mat Mat Matter Collected 643 | 177 83 333 50 Remotely . | . . . . Salvage Created 640 | . 83 557 . Parts 51 | . 7 44 . Haulers Intercepted . | . . . . Recyclers Shooed . | . . . . Parts Field Recycled . | . . . . Retrieved Matter . | . . . . Parts Self-Destructed . | . . . . Prevented . | . . . . Kills | -11 -10 -9 -8 ------- Run | Yrd Mat Mat Mat Combat Hostiles Destroyed 25 | . 4 21 . Guns 14 | . 2 12 . AOE 11 | . 2 9 . Classes Destroyed 7 | . 2 5 . Worker 6 | . . 6 . Builder 2 | . . 2 . Operator 1 | . . 1 . Watcher 1 | . . 1 . Swarmer 13 | . 3 10 . Grunt 8 | . 1 7 . Sentry 4 | . . 4 . Best Kill Streak 7 | . 4 7 . Combat Bots Only 6 | . 4 6 . Max Kills in Single Turn 4 | . 2 4 . Gunslinging 1 | . . 1 . Exploded 2 | . 2 2 . Melee . | . . . . Uniques/NPCs Destroyed . | . . . . Combat | -11 -10 -9 -8 -------- Run | Yrd Mat Mat Mat Hostile Shots Fired 286 | . 11 176 99 Missed 87 | . 3 60 24 Damage Taken 2663 | . 69 1400 1194 Core 864 | . 22 291 551 Absorbed by Shields 321 | . . 321 . Core Remaining (%) 72 | 100 91 27 . Volleys Fired 92 | . 17 68 7 Largest 3 | . 2 3 1 Hottest 177 | . 60 177 68 Shots Fired 139 | . 25 107 7 Gun 106 | . 24 82 . Cannon 7 | . . . 7 Launcher 26 | . 1 25 . Special . | . . . . Kinetic 20 | . 14 6 . Thermal 83 | . . 76 7 Explosive 26 | . 1 25 . Electromagnetic 10 | . 10 . . Robot Hit Streak 7 | . 6 7 2 Robot Miss Streak 4 | . 3 4 2 Penetration Max . | . . . . Secondary Targets 2 | . . 2 . Max Gunslinging Chain 1 | . . 1 . Shots Hit Robots 73 | . 11 58 4 Core Hits 47 | . 5 42 . Critical Kills . | . . . . Critical Parts Destroyed . | . . . . Critical Strikes 8 | . . 8 . Burn 8 | . . 8 . Melee Attacks . | . . . . Impact . | . . . . Slashing . | . . . . Piercing . | . . . . Sneak Attacks . | . . . . Combat Hostiles . | . . . . Follow-up Attacks . | . . . . Damage Inflicted 1984 | . 163 1741 80 Guns 821 | . 102 719 . Cannons 80 | . . . 80 Explosions 1073 | . 61 1012 . Melee . | . . . . Ramming 10 | . . 10 . Kinetic 88 | . 41 47 . Thermal 813 | . 61 672 80 Explosive 1012 | . . 1012 . Electromagnetic 61 | . 61 . . Impact . | . . . . Slashing . | . . . . Piercing . | . . . . Highest Corruption 5 | . . 5 . Average Corruption 3 | . . 3 . Corruption Purged . | . . . . Corruption Blocked . | . . . . Effects 20 | . . 20 . Message Errors 3 | . . 3 . Matter Fused 4 | . . 4 . Heat Flow Errors 3 | . . 3 . Energy Discharges 6 | . . 6 . Parts Rejected 2 | . . 2 . Parts Fused 1 | . . 1 . Data Loss (major) 1 | . . 1 . Overload Shots . | . . . . Overflow Damage 31 | . . 21 10 Projectiles 10 | . . . 10 Explosions 21 | . . 21 . Melee . | . . . . Knockbacks . | . . . . Impact . | . . . . Kinetic . | . . . . Secondary . | . . . . Self-Inflicted Damage 255 | . . 255 . Shots 10 | . . 10 . Rammed 3 | . . 3 . Targets Rammed 3 | . . 3 . Kicked . | . . . . Crushed . | . . . . Highest Temperature 689 | . 52 689 231 Average Temperature 171 | . 18 189 104 Received Heat Transfer 984 | . 12 486 486 Effects 28 | . . 27 1 Shutdowns 7 | . . 7 . Energy Bleed 3 | . . 2 1 Interference 7 | . . 7 . Matter Decay 2 | . . 2 . Damage (minor) 1 | . . 1 . Damage (major) 7 | . . 7 . Damage (core) 1 | . . 1 . Siege Activations . | . . . . Robots Corrupted . | . . . . Combat Hostiles . | . . . . Parts Fried . | . . . . Impact Corruptions . | . . . . Robots Melted . | . . . . Combat Hostiles . | . . . . Parts Melted 5 | . . 5 . Heat Transferred 2468 | . 100 2220 148 Parts Sabotaged . | . . . . Parts Stolen . | . . . . Parts Stripped . | . . . . Power Chain Reactions 1 | . 1 . . Alert | -11 -10 -9 -8 ------- Run | Yrd Mat Mat Mat Peak Influence 361 | . 202 361 156 Initial 141 | . . 85 141 Average 135 | . 141 140 136 Maximum Alert Level 1 | . 1 1 . Low Security (%) 80 | 100 72 79 100 Level 1 19 | . 27 20 . Level 2 . | . . . . Level 3 . | . . . . Level 4 . | . . . . Level 5 . | . . . . High Security . | . . . . Max Security . | . . . . Squads Dispatched 4 | . 1 2 1 Investigation . | . . . . Extermination . | . . . . Reinforcement 4 | . 1 2 1 Assault . | . . . . Garrison . | . . . . Intercept . | . . . . Searches Triggered . | . . . . Construction Impeded 1 | . . 1 . Haulers Reinforced . | . . . . Active Scanning Responses . | . . . . Cargo Convoy Interrupts . | . . . . Stealth | -11 -10 -9 -8 --------- Run | Yrd Mat Mat Mat Distress Signals 5 | . 1 4 . Communications Jammed . | . . . . Distress Signals . | . . . . Times Spotted 61 | . 10 44 7 Peak Tracking Total 7 | . 4 7 6 Tactical Retreats 2 | . . 1 1 Traps | -11 -10 -9 -8 ------- Run | Yrd Mat Mat Mat Traps Triggered 6 | . 4 2 . Indirectly . | . . . . Trap Hack Attempts . | . . . . Triggered . | . . . . Disarmed . | . . . . Reprogrammed . | . . . . Reused . | . . . . Traps Extracted . | . . . . Installed . | . . . . Triggered . | . . . . Machines | -11 -10 -9 -8 ---------- Run | Yrd Mat Mat Mat Machines Disabled 3 | . . 2 1 Max in Single Turn 1 | . . 1 1 Machines Repaired . | . . . . Machines Dismantled . | . . . . Machines Sabotaged . | . . . . Overloaded Fab Kills . | . . . . Hacking | -11 -10 -9 -8 --------- Run | Yrd Mat Mat Mat Machines Accessed 3 | . . 3 . Terminals 2 | . . 2 . Fabricators . | . . . . Repair Stations . | . . . . Recycling Units . | . . . . Scanalyzers 1 | . . 1 . Garrison Access . | . . . . Total Hacks 11 | . . 11 . Successful 8 | . . 8 . Failed 3 | . . 3 . Catastrophic . | . . . . Database Lockouts . | . . . . Manual . | . . . . Terminals 8 | . . 8 . Fabricators . | . . . . Repair Stations . | . . . . Recycling Units . | . . . . Scanalyzers 3 | . . 3 . Garrison Access . | . . . . Terminal Hacks 6 | . . 6 . Record 4 | . . 4 . Locate Traps 1 | . . 1 . Zone Layout 1 | . . 1 . Fabricator Hacks . | . . . . Repair Station Hacks . | . . . . Recycling Unit Hacks . | . . . . Scanalyzer 2 | . . 2 . Insert Component 1 | . . 1 . Analyze 1 | . . 1 . Garrison Access Hacks . | . . . . Unauthorized Hacks . | . . . . Terminals . | . . . . Fabricators . | . . . . Repair Stations . | . . . . Recycling Units . | . . . . Scanalyzers . | . . . . Garrison Access . | . . . . Data Cores Recovered . | . . . . Used . | . . . . Hacking Detections 2 | . . 2 . Full Trace Events . | . . . . Feedback Events . | . . . . Feedback Blocked . | . . . . Robot Schematics Acquired . | . . . . Robots Built . | . . . . Authchips . | . . . . Time . | . . . . Total Robot Build Rating . | . . . . Part Schematics Acquired 1 | . . 1 . Parts Built . | . . . . Authchips . | . . . . Time . | . . . . Total Part Build Rating . | . . . . Parts Repaired . | . . . . Time . | . . . . Parts Recycled . | . . . . Recycled Matter . | . . . . Retrieved Matter . | . . . . Retrieved Components . | . . . . Parts Scanalyzed 1 | . . 1 . Part Schematics Acquired 1 | . . 1 . Parts Damaged 1 | . . 1 . Bothacking | -11 -10 -9 -8 ------------ Run | Yrd Mat Mat Mat Used RIF Installer . | . . . . Robots Hacked . | . . . . Non-combat . | . . . . Combat . | . . . . Robot Hacks Applied . | . . . . Relay Couplers Released . | . . . . Fabnet Peak Effective % . | . . . . Robots Rewired . | . . . . Allies Hacked . | . . . . Hacks Repelled . | . . . . Allies | -11 -10 -9 -8 -------- Run | Yrd Mat Mat Mat Total Allies . | . . . . Largest Group . | . . . . Highest-Rated Group . | . . . . Highest-Rated Ally . | . . . . Total Orders . | . . . . Ally Attacks . | . . . . Total Damage . | . . . . Kills . | . . . . Allies Corrupted . | . . . . Allies Melted . | . . . . Intel | -11 -10 -9 -8 ------- Run | Yrd Mat Mat Mat Robot Analysis Total . | . . . . Derelict Logs Recovered . | . . . . Drone Launches . | . . . . Drone Recoveries . | . . . . Exploration | -11 -10 -9 -8 ------------- Run | Yrd Mat Mat Mat Turns Passed 2120 | 78 382 1491 169 Spaces Moved 1015 | 90 274 589 62 Core 158 | 28 30 46 54 Treads 174 | . . 174 . Legs 8 | . . . 8 Wheels 400 | 62 229 109 . Hover 275 | . 15 260 . Flight . | . . . . Fastest Speed 50 | 50 90 80 50 Average Speed 176 | 77 115 213 235 Slowest Speed 500 | 90 350 500 300 Overloaded Moves . | . . . . Propulsion Burnouts . | . . . . Robots Hopped . | . . . . Cave-ins Triggered . | . . . . Exploration Rate (%) 30 | 5 52 54 10 Regions Visited 3 Branch Regions . Pre-discovered Areas . | . . . . Known Exits Taken . | . . . . Unknown Exits Taken 3 | 1 1 1 . Scrap Searched . | . . . . Spaces Dug . | . . . . Terrain Destroyed 180 | . 15 165 . Melee . | . . . . Projectile . | . . . . AOE 180 | . 15 165 . Terrain Rammed . | . . . . Walls Destroyed . | . . . . Machines Disabled . | . . . . Actions | -11 -10 -9 -8 --------- Run | Yrd Mat Mat Mat Total 1215 | 95 319 723 78 Wait 5 | . 4 1 . Move 1012 | 89 273 588 62 Hop . | . . . . Pick Up 37 | . 11 22 4 Fast Attach 8 | 6 2 . . Attach 34 | . 5 24 5 Detach 11 | . 2 9 . Swap 2 | . 1 1 . Drop 11 | . 4 7 . Fire 92 | . 17 68 7 Melee . | . . . . Ram 3 | . . 3 . Kick . | . . . . Crush . | . . . . Escape Stasis . | . . . . Rewire . | . . . . Trap . | . . . . Miscellaneous . | . . . . Route ------- -11/Scrapyard -10/Materials (discovered 3 exits: *Mat / [*Min x2]) -9/Materials (discovered 2 exits: [*Mat] / [*Min]) -8/Materials History --------- Turn | Location | Event 12 | -11/Scrapyard | Discovered new exit (range 15) 79 | -11/Scrapyard | Entered Materials 255 | -10/Materials | Discovered new exit (range 16) 308 | -10/Materials | Build established: Mutant 308 | -10/Materials | Discovered new exit (range 16) 418 | -10/Materials | Discovered new exit (range 16) 461 | -10/Materials | Entered another Materials area 461 | -9/Materials | Evolved 2 slots: Power x1, Weapon x1 1062 | -9/Materials | Discovered new exit (range 20) 1186 | -9/Materials | Lost 4 parts (1n1u2w) 1713 | -9/Materials | Core integrity fell below 50% 1769 | -9/Materials | Lost 4 parts (2p1n1w) 1853 | -9/Materials | Lost 3 parts (1u2w) 1929 | -9/Materials | Discovered new exit (range 16) 1952 | -9/Materials | Entered another Materials area 1952 | -8/Materials | Evolved 2 slots: Propulsion x1, Utility x1 1973 | -8/Materials | Lost 5 parts (1p2n1u1w) 2109 | -8/Materials | Core integrity fell below 50% 2116 | -8/Materials | Core integrity fell below 20% 2121 | -8/Materials | Destroyed by G-47 Trooper with Particle Gun Last Messages --------------- M-13 Machinist fits Backup Plating I on H-55 Commando. Penetrated by Slug. Titanium Leg destroyed. Critical hit (Burn: +37). Acquired Imp. Ion Engine. M-13 Machinist repairs Lgt. Nuclear Core. Penetrated by Slug. H-55 Commando heat damages Carbon-fiber Leg. M-13 Machinist repairs Carbon-fiber Leg. U-05 Engineer works on Material Processor. Slug penetrates Terminal. Critical hit (Burn: +37). U-05 Engineer works on Material Processor. R-06 Scavenger collects Imp. Aluminum Leg. ECM Suite destroyed. H-55 Commando heat short circuits Assault Rifle. Imp. Ion Engine destroyed. Penetrated by Slug. R-06 Scavenger collects Melee Analysis Suite. Map ----- +----------------------------------------------------+ | ?????????????????????????????????????????????????? | | ?????????????????????????????????????????????????? | | ?????????????????????????????????????????????????? | | ?????????????????????????????????????????????????? | | ?????????????????????????????????????????????????? | | ?????????????????????????????????????????????????? | | ?????????????????????????????????????????????????? | | ?????????????????????????????????????????????????? | | ?????????????????????????????????????????????????? | | ?????????????????????????????????????????????????? | | ?????????????????????????????????????????????????? | | ?????????????????????????????????????????????????? | | ??????????????????????" ?????????????????????????? | | ?????????????????????"" ?????????????????????????? | | ??????????????????????" ?????????????????????????? | | ?????????????????????? ?????????????????????????? | | ?????????????????????? ????????????????????????? | | ??????????????????????# ????????????????????????? | | ??????????????????????# ????????????????????????? | | ??????????????????????# ????????????????????????? | | ??????????????????????# #???????????????????????? | | ??????????????????????# #???????????????????????? | | ??????????????????????# #???????????????????????? | | ???????????????????#### ###############?????????? | | ???????????????????# ????????? | | ???????????????????# @ ????????? | | ???????????????????# < ??????????? | | ???????????????????+ <<